Cogmind - Beta 13 @@@ ROGUE MODE // 2024.06.05 @ 13:20:24 Player: Barbarossa Result: Destroyed by H-61 Shepherd with Heavy Assault Cannon Performance ------------- Evolutions (4) 2000 Regions Visited (7) 1400 Robots Destroyed (98) 490 Value Destroyed (3283) 3283 Prototype IDs (8) 160 Alien Tech Used (0) 0 Bonus (167) 167 TOTAL SCORE: 7500 Bonus ------- High Alert Combat Kills 11 Follower Combat Kills 156 Cogmind --------- Core Integrity 0/850 Matter 295/300 Energy 100/100 System Corruption 1% Temperature Cool (0) Movement Core (350) Ox6 Location -6/Factory Parts ------- > --- POWER (1) -------- (None) > --- PROPULSION (4) --- (None) > --- UTILITY (7) ------ Large Storage Unit Melee Analysis Suite Hacking Suite System Shield System Shield > --- WEAPON (3) ------- (None) > --- INVENTORY (15) --- Improved Deuterium Engine Improved Cooling System High-capacity Matter Pod (200) Improved Sensor Array Improved Signal Interpreter Transmission Jammer System Shield System Restoration Module High-powered Field Laser Improved Datajack Peak State ------------ > --- POWER ------------ Improved Deuterium Engine > --- PROPULSION ------- Improved Carbon-fiber Leg Improved Carbon-fiber Leg Improved Carbon-fiber Leg Improved Titanium Leg > --- UTILITY ---------- Coolant Injector Large Storage Unit Melee Analysis Suite Hacking Suite Hacking Suite System Shield System Shield > --- WEAPON ----------- High-powered Field Laser High-powered Field Laser Spear > --- INVENTORY -------- Deuterium Engine Improved Carbon-fiber Leg High-capacity Matter Pod Improved Sensor Array Improved Signal Interpreter Melee Analysis Suite Transmission Jammer System Shield System Shield System Restoration Module Improved Datajack Scythe Spear Spear [Rating: 58] Favorites ----------- Power Improved Deuterium Engine Engine Improved Deuterium Engine Power Core Enhanced Nuclear Core Propulsion Improved Carbon-fiber Leg Leg Improved Carbon-fiber Leg Wheel Wheel Flight Unit Improved Flight Unit Utility System Shield Device Advanced Heat Sink Storage Large Storage Unit Processor Melee Analysis Suite Hackware System Shield Protection Core Shielding Weapon High-powered Field Laser Energy Gun High-powered Field Laser Energy Cannon Advanced Beam Cannon Ballistic Gun Heavy Assault Rifle Impact Weapon Hammer Slashing Weapon Scythe Piercing Weapon Spear Build | -11 -10 -9 -8 -7 -7 -7 -6 ------- Run | Yrd Mat Mat Mat Fac Low Low Fac Slots Evolved 8 | . . 2 2 2 . . 2 Power . | . . . . . . . . Propulsion 2 | . . 1 1 . . . . Utility 5 | . . 1 1 2 . . 1 Weapon 1 | . . . . . . . 1 Parts Attached 110 | . 4 21 23 18 1 4 39 Power 17 | . . 4 3 2 . . 8 Engine 15 | . . 4 3 2 . . 6 Core 2 | . . . . . . . 2 Reactor . | . . . . . . . . Propulsion 51 | . 2 8 9 11 1 3 17 Treads . | . . . . . . . . Leg 46 | . 2 3 9 11 1 3 17 Wheel 4 | . . 4 . . . . . Hover . | . . . . . . . . Flight 1 | . . 1 . . . . . Utility 19 | . 1 3 5 3 . 1 6 Device 5 | . . 1 2 . . 1 1 Storage 3 | . . 2 . 1 . . . Processor 2 | . . . . . . . 2 Hackware 6 | . . . 3 2 . . 1 Protection 3 | . 1 . . . . . 2 Artifact . | . . . . . . . . Weapon 23 | . 1 6 6 2 . . 8 Energy Gun 11 | . . 2 5 2 . . 2 Energy Cannon 1 | . . 1 . . . . . Ballistic Gun 2 | . . 1 1 . . . . Ballistic Cannon . | . . . . . . . . Launcher . | . . . . . . . . Special Weapon . | . . . . . . . . Impact Weapon 3 | . 1 2 . . . . . Slashing Weapon 2 | . . . . . . . 2 Piercing Weapon 4 | . . . . . . . 4 Special Melee Weapon . | . . . . . . . . Unidentified Prototypes 7 | . . 3 2 . . . 2 Corrupted Parts 1 | . . 1 . . . . . System Corruption 13 | . . 13 . . . . . Parts Lost 40 | . 3 11 4 . . . 22 Power 6 | . 1 2 1 . . . 2 Propulsion 20 | . 2 5 3 . . . 10 Utility 6 | . . 1 . . . . 5 Weapon 8 | . . 3 . . . . 5 Highest Loss Streak 12 | . 3 5 3 . . . 12 To Critical Strikes . | . . . . . . . . Average Slot Usage (%) 86 | . 79 52 94 100 100 100 93 Engine 7 | . 11 9 8 7 7 7 3 Leg 23 | . 25 7 28 30 30 30 23 Wheel 1 | . . 4 3 . . . . Device 4 | . . . 9 7 7 7 3 Storage 8 | . 14 11 9 7 7 7 6 Processor 2 | . . . . . . . 7 Hackware 18 | . . . 17 30 30 30 25 Protection 1 | . 11 1 . . . . . Energy Gun 7 | . . 1 9 15 15 15 6 Ballistic Gun 1 | . 2 1 5 . . . . Impact Weapon 3 | . 12 13 . . . . . Piercing Weapon 3 | . . . . . . . 10 Naked Turns . | . . . . . . . . Heaviest Build 42 | 11 11 33 38 39 39 39 42 Greatest Support 74 | 20 20 36 45 72 72 74 74 Greatest Overweight (x) 10 | . 2 6 9 . . . 10 Average Overweight (x) . | . . 1 . . . . . Largest Inventory Capacity 15 | . 8 15 15 15 15 15 15 Average Capacity 13 | . 8 10 15 15 15 15 15 Most Carried 15 | . 7 14 15 15 15 15 15 Average Carried 12 | . 4 6 14 14 15 14 14 Final Capacity 15 | 8 8 15 15 15 15 15 15 Final Carried 15 | 6 5 13 15 15 15 15 10 Class Distribution -------------------- 58% | Hacker-Mutant 26% | Mutant 15% | Hacker-Gladiator Dominant Class ---------------- Mutant | -10/Materials Mutant | -9/Materials Hacker-Mutant | -8/Materials Hacker-Mutant | -7/Factory Hacker-Mutant | -7/Lower Caves Hacker-Mutant | -7/Lower Caves Hacker-Gladiator | -6/Factory Resources | -11 -10 -9 -8 -7 -7 -7 -6 ----------- Run | Yrd Mat Mat Mat Fac Low Low Fac Matter Collected 1563 | 200 51 366 366 130 60 . 390 Remotely . | . . . . . . . . Salvage Created 4138 | . 180 783 1066 441 20 . 1648 Parts 172 | . 14 26 47 17 1 . 67 Haulers Intercepted 4 | . 1 1 1 . . . 1 Recyclers Shooed 3 | . . . 2 . . . 1 Parts Field Recycled . | . . . . . . . . Retrieved Matter . | . . . . . . . . Parts Self-Destructed 4 | . . . . . 4 . . Prevented . | . . . . . . . . Kills | -11 -10 -9 -8 -7 -7 -7 -6 ------- Run | Yrd Mat Mat Mat Fac Low Low Fac Combat Hostiles Destroyed 70 | . 5 14 17 8 1 . 25 Melee 27 | . 4 2 . . . . 21 Guns 26 | . . . 13 8 1 . 4 Cannons 5 | . . 2 3 . . . . AOE 1 | . . 1 . . . . . Classes Destroyed 13 | . 5 3 1 . 1 . 3 Worker 5 | . . 3 . 1 . . 1 Hauler 4 | . 1 1 1 . . . 1 Recycler 6 | . . 1 1 2 . . 2 Operator 6 | . 1 1 3 . . . 1 Watcher 7 | . 2 3 1 . . . 1 Swarmer 12 | . 3 . . 5 . . 4 Grunt 42 | . 2 8 14 3 . . 15 Brawler 1 | . . . 1 . . . . Duelist 1 | . . . . . . . 1 Sentry 9 | . . 6 2 . . . 1 Specialist 2 | . . . . . . . 2 Programmer 2 | . . . . . . . 2 Thief 1 | . . . . . 1 . . Best Kill Streak 7 | . 3 5 5 4 1 . 7 Combat Bots Only 4 | . 3 4 4 3 1 . 4 Max Kills in Single Turn 1 | . 1 1 1 1 1 . 1 Gunslinging . | . . . . . . . . Exploded 1 | . . 1 . . . . . Melee 1 | . 1 1 . . . . 1 Uniques/NPCs Destroyed . | . . . . . . . . Combat | -11 -10 -9 -8 -7 -7 -7 -6 -------- Run | Yrd Mat Mat Mat Fac Low Low Fac Hostile Shots Fired 579 | . 54 127 70 63 7 . 258 Missed 139 | . 12 28 18 16 3 . 62 Damage Taken 7806 | . 438 1567 835 719 57 . 4190 Core 1694 | . 105 379 159 157 19 . 875 Absorbed by Shields . | . . . . . . . . Redirected to Shielding 50 | . 22 28 . . . . . Regen/Repaired (Parts) 404 | . . . 106 . . . 298 Core Remaining (%) 61 | 100 58 5 71 . . 74 . Volleys Fired 106 | . . 7 52 31 5 . 11 Largest 2 | . . 2 2 2 2 . 2 Hottest 140 | . . 91 140 140 140 . 140 Shots Fired 208 | . . 12 104 62 10 . 20 Gun 183 | . . 6 85 62 10 . 20 Cannon 25 | . . 6 19 . . . . Launcher . | . . . . . . . . Special . | . . . . . . . . Kinetic 42 | . . 5 37 . . . . Thermal 166 | . . 7 67 62 10 . 20 Explosive . | . . . . . . . . Electromagnetic . | . . . . . . . . Robot Hit Streak 10 | . . 7 9 10 8 . 4 Robot Miss Streak 4 | . . 1 3 4 2 . 2 Penetration Max . | . . . . . . . . Secondary Targets 2 | . . . 1 1 . . . Max Gunslinging Chain 1 | . . . 1 1 . . . Shots Hit Robots 290 | . 16 64 69 37 7 . 97 Core Hits 118 | . 5 7 36 15 2 . 53 Critical Kills 3 | . . . 3 . . . . Critical Parts Destroyed 15 | . 2 11 2 . . . . Critical Strikes 31 | . 2 12 5 4 . . 8 Burn 4 | . . . . 4 . . . Meltdown 2 | . . . 2 . . . . Destroy 3 | . . . 3 . . . . Smash 14 | . 2 12 . . . . . Sever 1 | . . . . . . . 1 Impale 7 | . . . . . . . 7 Melee Attacks 202 | . 27 67 . . . . 108 Impact 94 | . 27 67 . . . . . Slashing 17 | . . . . . . . 17 Piercing 91 | . . . . . . . 91 Sneak Attacks 20 | . 2 9 . . . . 9 Combat Hostiles . | . . . . . . . . Follow-up Attacks 24 | . . 7 . . . . 17 Damage Inflicted 7724 | . 474 1994 1314 858 161 . 2923 Guns 2358 | . . 82 1005 858 161 . 252 Cannons 391 | . . 82 309 . . . . Explosions . | . . . . . . . . Melee 4975 | . 474 1830 . . . . 2671 Ramming . | . . . . . . . . Kinetic 415 | . . 82 333 . . . . Thermal 2334 | . . 82 981 858 161 . 252 Explosive . | . . . . . . . . Electromagnetic . | . . . . . . . . Impact 2304 | . 474 1830 . . . . . Slashing 372 | . . . . . . . 372 Piercing 2299 | . . . . . . . 2299 Highest Corruption 13 | . . 13 . . . . 1 Average Corruption 9 | . . 13 . . . . 1 Corruption Purged . | . . . . . . . . Corruption Blocked . | . . . . . . . . Effects 24 | . . 20 . . . . 4 Message Errors 3 | . . 2 . . . . 1 Matter Fused 6 | . . 5 . . . . 1 Heat Flow Errors 6 | . . 5 . . . . 1 Energy Discharges 1 | . . 1 . . . . . Parts Fused 2 | . . 2 . . . . . Data Loss (minor) 2 | . . 2 . . . . . Data Loss (major) 2 | . . 2 . . . . . Alerts 1 | . . . . . . . 1 Weapon Failures 1 | . . 1 . . . . . Overload Shots . | . . . . . . . . Overflow Damage 993 | . 112 623 12 . . . 246 Projectiles 12 | . . . 12 . . . . Explosions . | . . . . . . . . Melee 981 | . 112 623 . . . . 246 Knockbacks 13 | . 4 9 . . . . . Impact 12 | . 4 8 . . . . . Kinetic . | . . . . . . . . Secondary 1 | . . 1 . . . . . Self-Inflicted Damage . | . . . . . . . . Shots . | . . . . . . . . Rammed . | . . . . . . . . Targets Rammed . | . . . . . . . . Kicked . | . . . . . . . . Crushed . | . . . . . . . . Highest Temperature 248 | . . 248 189 88 . . 192 Average Temperature 60 | . . 79 54 39 . . 80 Received Heat Transfer 2241 | . 192 471 450 270 . . 858 Siege Activations . | . . . . . . . . Robots Corrupted . | . . . . . . . . Combat Hostiles . | . . . . . . . . Parts Fried 20 | . 4 16 . . . . . Impact Corruptions 35 | . 7 28 . . . . . Robots Melted 2 | . . . 2 . . . . Combat Hostiles 1 | . . . 1 . . . . Parts Melted 12 | . . . 4 7 . . 1 Heat Transferred 4292 | . . 148 1776 1702 259 . 407 Parts Sabotaged . | . . . . . . . . Parts Stolen 1 | . . . . . 1 . . Parts Stripped . | . . . . . . . . Power Chain Reactions . | . . . . . . . . Alert | -11 -10 -9 -8 -7 -7 -7 -6 ------- Run | Yrd Mat Mat Mat Fac Low Low Fac Peak Influence 439 | . 191 280 439 231 . . 297 Initial 135 | . . 80 118 135 . . . Average 147 | . 80 136 251 173 . . 91 Maximum Alert Level 2 | . . 1 2 1 . . 1 Low Security (%) 69 | . 100 89 20 52 . . 88 Level 1 29 | . . 10 73 47 . . 11 Level 2 1 | . . . 5 . . . . Level 3 . | . . . . . . . . Level 4 . | . . . . . . . . Level 5 . | . . . . . . . . High Security . | . . . . . . . . Max Security . | . . . . . . . . Squads Dispatched 21 | . 1 3 6 2 . . 9 Investigation 4 | . . 1 1 1 . . 1 Extermination 3 | . . . . . . . 3 Reinforcement 13 | . 1 2 5 . . . 5 Assault . | . . . . . . . . Garrison 1 | . . . . 1 . . . Intercept . | . . . . . . . . Searches Triggered . | . . . . . . . . Construction Impeded . | . . . . . . . . Haulers Reinforced 1 | . . . . . . . 1 Active Scanning Responses . | . . . . . . . . Cargo Convoy Interrupts 1 | . . . . 1 . . . Stealth | -11 -10 -9 -8 -7 -7 -7 -6 --------- Run | Yrd Mat Mat Mat Fac Low Low Fac Distress Signals 10 | . . 3 3 . . . 4 Communications Jammed . | . . . . . . . . Distress Signals . | . . . . . . . . Times Spotted 119 | . 9 28 21 11 2 . 48 Peak Tracking Total 7 | . 3 6 4 4 1 . 7 Tactical Retreats 5 | . . 2 1 . . . 2 Traps | -11 -10 -9 -8 -7 -7 -7 -6 ------- Run | Yrd Mat Mat Mat Fac Low Low Fac Traps Triggered 7 | . . . 1 3 . . 3 Indirectly . | . . . . . . . . Trap Hack Attempts . | . . . . . . . . Triggered . | . . . . . . . . Disarmed . | . . . . . . . . Reprogrammed . | . . . . . . . . Reused . | . . . . . . . . Traps Extracted . | . . . . . . . . Installed . | . . . . . . . . Triggered . | . . . . . . . . Machines | -11 -10 -9 -8 -7 -7 -7 -6 ---------- Run | Yrd Mat Mat Mat Fac Low Low Fac Machines Disabled 2 | . . . 2 . . . . Max in Single Turn 1 | . . . 1 . . . . Machines Repaired . | . . . . . . . . Machines Dismantled . | . . . . . . . . Machines Sabotaged . | . . . . . . . . Overloaded Fab Kills . | . . . . . . . . Hacking | -11 -10 -9 -8 -7 -7 -7 -6 --------- Run | Yrd Mat Mat Mat Fac Low Low Fac Machines Accessed 18 | . 1 2 7 3 1 . 4 Terminals 10 | . 1 1 5 2 . . 1 Fabricators 2 | . . . . 1 . . 1 Repair Stations 2 | . . . 1 . . . 1 Recycling Units . | . . . . . . . . Scanalyzers 3 | . . 1 1 . . . 1 Garrison Access . | . . . . . . . . Total Hacks 79 | . 2 12 29 9 5 . 22 Successful 58 | . . 11 18 6 5 . 18 Failed 21 | . 2 1 11 3 . . 4 Catastrophic 4 | . . 1 3 . . . . Database Lockouts . | . . . . . . . . Manual 27 | . 2 2 15 2 . . 6 Terminals 32 | . 2 2 18 8 . . 2 Fabricators 7 | . . . . 1 . . 6 Repair Stations 14 | . . . 4 . . . 10 Recycling Units . | . . . . . . . . Scanalyzers 21 | . . 10 7 . . . 4 Garrison Access . | . . . . . . . . Terminal Hacks 8 | . . . . 3 5 . . Record 5 | . . . . . 5 . . Terminal Index 1 | . . . . 1 . . . Alert Level 1 | . . . . 1 . . . Locate Traps 1 | . . . . 1 . . . Fabricator Hacks 2 | . . . . 1 . . 1 Network Status 1 | . . . . . . . 1 Build 1 | . . . . 1 . . . Repair Station Hacks 14 | . . . 4 . . . 10 Scan Component 7 | . . . 2 . . . 5 Repair 7 | . . . 2 . . . 5 Recycling Unit Hacks . | . . . . . . . . Scanalyzer 20 | . . 10 7 . . . 3 Insert Component 9 | . . 4 3 . . . 2 Analyze 11 | . . 6 4 . . . 1 Garrison Access Hacks . | . . . . . . . . Unauthorized Hacks 14 | . . 1 7 2 . . 4 Terminals 11 | . . 1 7 2 . . 1 Assimilate 1 | . . . 1 . . . . Botnet 9 | . . 1 5 2 . . 1 Operators 1 | . . . 1 . . . . Fabricators 3 | . . . . . . . 3 Report 1 | . . . . . . . 1 Liberate 1 | . . . . . . . 1 Fabnet 1 | . . . . . . . 1 Repair Stations . | . . . . . . . . Recycling Units . | . . . . . . . . Scanalyzers . | . . . . . . . . Garrison Access . | . . . . . . . . Data Cores Recovered . | . . . . . . . . Used . | . . . . . . . . Hacking Detections 14 | . 1 1 7 2 . . 3 Full Trace Events 1 | . . . . . . . 1 Feedback Events 1 | . . . . . . . 1 Hackware Fried 1 | . . . . . . . 1 Feedback Blocked . | . . . . . . . . Robot Schematics Acquired . | . . . . . . . . Robots Built . | . . . . . . . . Authchips . | . . . . . . . . Time . | . . . . . . . . Total Robot Build Rating . | . . . . . . . . Part Schematics Acquired 8 | . . 4 3 . . . 1 Parts Built . | . . . . . . . . Authchips . | . . . . . . . . Time 58 | . . . . 58 . . . Total Part Build Rating . | . . . . . . . . Parts Repaired 6 | . . . 2 . . . 4 Time 342 | . . . 70 . . . 272 Parts Recycled . | . . . . . . . . Recycled Matter . | . . . . . . . . Retrieved Matter . | . . . . . . . . Retrieved Components . | . . . . . . . . Parts Scanalyzed 9 | . . 4 3 . . . 2 Part Schematics Acquired 8 | . . 4 3 . . . 1 Parts Damaged 1 | . . . . . . . 1 Bothacking | -11 -10 -9 -8 -7 -7 -7 -6 ------------ Run | Yrd Mat Mat Mat Fac Low Low Fac Used RIF Installer . | . . . . . . . . Robots Hacked . | . . . . . . . . Non-combat . | . . . . . . . . Combat . | . . . . . . . . Robot Hacks Applied . | . . . . . . . . Relay Couplers Released . | . . . . . . . . Fabnet Peak Effective % . | . . . . . . . . Robots Rewired . | . . . . . . . . Allies Hacked . | . . . . . . . . Hacks Repelled . | . . . . . . . . Allies | -11 -10 -9 -8 -7 -7 -7 -6 -------- Run | Yrd Mat Mat Mat Fac Low Low Fac Total Allies 4 | . . . . . 2 . 2 Largest Group 2 | . . . . . 2 . 2 Highest-Rated Group 64 | . . . . . 50 . 64 Highest-Rated Ally 32 | . . . . . 25 . 32 Total Orders . | . . . . . . . . Ally Attacks 11 | . . . . . 1 . 10 Total Damage 495 | . . . . . 44 . 451 Kills 4 | . . . . . 1 . 3 Allies Corrupted . | . . . . . . . . Allies Melted . | . . . . . . . . Intel | -11 -10 -9 -8 -7 -7 -7 -6 ------- Run | Yrd Mat Mat Mat Fac Low Low Fac Robot Analysis Total . | . . . . . . . . Derelict Logs Recovered 1 | . . . . . 1 . . Drone Launches . | . . . . . . . . Drone Recoveries . | . . . . . . . . Exploration | -11 -10 -9 -8 -7 -7 -7 -6 ------------- Run | Yrd Mat Mat Mat Fac Low Low Fac Turns Passed 5192 | . 341 1047 997 641 539 98 1529 Spaces Moved 2924 | 1 207 509 544 420 432 75 736 Core 150 | . 3 140 2 . . . 5 Treads . | . . . . . . . . Legs 2513 | 1 204 198 452 420 432 75 731 Wheels 261 | . . 171 90 . . . . Hover . | . . . . . . . . Flight . | . . . . . . . . Fastest Speed 80 | 120 120 80 86 120 120 120 120 Average Speed 127 | 120 120 147 123 120 120 120 125 Slowest Speed 550 | 120 150 350 500 122 120 122 550 Overloaded Moves . | . . . . . . . . Propulsion Burnouts . | . . . . . . . . Robots Hopped . | . . . . . . . . Cave-ins Triggered . | . . . . . . . . Exploration Rate (%) 33 | 2 49 54 52 13 68 15 17 Regions Visited 7 Branch Regions 2 Pre-discovered Areas . | . . . . . . . . Known Exits Taken 1 | . . . . . . 1 . Unknown Exits Taken 6 | 1 1 1 1 1 1 . . Scrap Searched 2 | . . . . . 1 1 . Spaces Dug . | . . . . . . . . Terrain Destroyed 1 | . . . 1 . . . . Melee . | . . . . . . . . Projectile 1 | . . . 1 . . . . AOE . | . . . . . . . . Terrain Rammed . | . . . . . . . . Walls Destroyed . | . . . . . . . . Machines Disabled . | . . . . . . . . Actions | -11 -10 -9 -8 -7 -7 -7 -6 --------- Run | Yrd Mat Mat Mat Fac Low Low Fac Total 3885 | . 252 674 767 498 442 81 1171 Wait 448 | . 7 51 105 5 4 . 276 Move 2917 | . 206 508 543 419 431 74 736 Hop . | . . . . . . . . Pick Up 61 | . 3 20 20 8 . 1 9 Fast Attach 48 | . 3 11 11 4 1 1 17 Attach 22 | . . 8 2 2 . . 10 Detach . | . . . . . . . . Swap 40 | . 1 2 10 12 . 3 12 Drop 68 | . 5 8 24 17 . 2 12 Fire 106 | . . 7 52 31 5 . 11 Melee 174 | . 27 59 . . . . 88 Ram . | . . . . . . . . Kick . | . . . . . . . . Crush . | . . . . . . . . Escape Stasis . | . . . . . . . . Rewire 1 | . . . . . 1 . . Trap . | . . . . . . . . Miscellaneous . | . . . . . . . . Route ------- -11/Scrapyard -10/Materials (discovered 2 exits: *Mat / [*Min]) -9/Materials (discovered 2 exits: *Mat / [*Min]) -8/Materials -7/Factory -7/Lower Caves -7/Lower Caves -6/Factory (discovered 3 exits: Fac x3) History --------- Turn | Location | Event 1 | -11/Scrapyard | Discovered new exit (range 0) 1 | -11/Scrapyard | Entered Materials 142 | -10/Materials | Discovered new exit (range 10) 301 | -10/Materials | Build established: Mutant 331 | -10/Materials | Lost 3 parts (1p2n) 335 | -10/Materials | Discovered new exit (range 7) 342 | -10/Materials | Entered another Materials area 342 | -9/Materials | Evolved 2 slots: Propulsion x1, Utility x1 455 | -9/Materials | Lost 3 parts (1p2n) 907 | -9/Materials | System corruption reached 10% 1002 | -9/Materials | Discovered new exit (range 13) 1129 | -9/Materials | Core integrity fell below 50% 1188 | -9/Materials | Core integrity fell below 20% 1218 | -9/Materials | Lost 5 parts (1p2n2w) 1367 | -9/Materials | Discovered new exit (range 10) 1389 | -9/Materials | Entered another Materials area 1389 | -8/Materials | Evolved 2 slots: Propulsion x1, Utility x1 1552 | -8/Materials | Lost 3 parts (1p2n) 1681 | -8/Materials | Build established: Hacker-Mutant 1801 | -8/Materials | Met 7R-MNS 2017 | -8/Materials | Repaired Hvy. Assault Rifle 2056 | -8/Materials | Repaired Carbon-fiber Leg 2363 | -8/Materials | Discovered new exit (range 16) 2386 | -8/Materials | Entered Factory 2386 | -7/Factory | Evolved 2 slots: Utility x2 2387 | -7/Factory | Caught up to 7R-MNS 3013 | -7/Factory | Cargo convoy interrupted 3020 | -7/Factory | Garrison activated, responded to threat 3024 | -7/Factory | Discovered new exit (range 3) 3027 | -7/Factory | Entered Lower Caves 3098 | -7/Lower Caves | Learned Factory interactive machine intel 3122 | -7/Lower Caves | A Commander dispatched an escort 3133 | -7/Lower Caves | Learned Armory stockpile data 3133 | -7/Lower Caves | Learned Armory terminal intel 3133 | -7/Lower Caves | Learned Factory garrison access intel 3173 | -7/Lower Caves | Encountered a Warlord checkpoint 3554 | -7/Lower Caves | Discovered new exit (range 11) 3566 | -7/Lower Caves | Entered another Lower Caves area 3566 | -7/Lower Caves | Accompanied by 2 allies 3567 | -7/Lower Caves | Commander's escort returned to base 3567 | -7/Lower Caves | Commander's escort returned to base 3567 | -7/Lower Caves | Identified exit to Factory 3664 | -7/Lower Caves | Entered Factory 3664 | -6/Factory | Evolved 2 slots: Utility x1, Weapon x1 3665 | -6/Factory | Identified exit to Factory 3666 | -6/Factory | Loaded intel: 51 interactive machine locations 3667 | -6/Factory | Loaded intel: 4 garrison access locations 4227 | -6/Factory | Repaired Hpw. Field Laser 4273 | -6/Factory | Repaired Imp. Carbon-fiber Leg 4318 | -6/Factory | Repaired Imp. Deuterium Engine 4364 | -6/Factory | Repaired Imp. Titanium Leg 4499 | -6/Factory | Hacking Suite fried by hacking feedback 4686 | -6/Factory | Build established: Hacker-Gladiator 5099 | -6/Factory | Core integrity fell below 50% 5173 | -6/Factory | Core integrity fell below 20% 5193 | -6/Factory | Destroyed by H-61 Shepherd with Heavy Assault Cannon Last Messages --------------- 05183_ R-10 Processor collects Flexi-carbon Leg. 05184_ K-01 Serf collects debris. 05184_ K-01 Serf cleans the Fusion Modulator. 05185_ Sneak attack on R-10 Processor. 05185_ R-10 Processor destroyed. 05185_ K-01 Serf collects debris. 05185_ R-10 Processor collects Flexi-carbon Leg. 05186_ R-10 Processor collects Com. Wheel. 05187_ Sneak attack on R-10 Processor. 05187_ R-10 Processor suffers critical hit (Impale). 05187_ Destroyed Field Recycling Unit. 05187_ R-10 Processor collects Hvy. Machine Gun. 05187_ K-01 Serf collects debris. 05188_ Spear destroyed. 05188_ Knocked back. 05188_ R-10 Processor collects Com. Wheel. 05190_ K-01 Serf collects debris. 05192_ R-10 Processor collects Adv. Heat Sink. 05193_ Slug penetrates Repair Station. Map ----- +----------------------------------------------------+ | ????????????????????# # | | ????????????????????# # """"""""" | | ????????????????????# !%[ # | | ????????????????????########+##### """"""""" | | ????????????????????????? ?#%#???# %! | | ????????????????????????# ?#!#???# ! = | | ????????????????????????# ##+###############+### | | ???????????????????????## ##% ^ !## # | | """????????????????????# # ! ## # | | "R?????????????????????# + % ## # | | """????????????????????# # ## + | | ???????????????????????## ## """"""" ## # | | ????????????????????????# ## """"""" ## # | | ????????????????????????#% + """"""" ## ### | | ????????????????????????# ## """""""??# # | | ???????????????????????##%########????# # " | | ???????????????????????#"%#???????????########## " | | ???????????????????????##%##???????????????????# " | | ???????????????????????##%##???????????????????# | | ???????????????????????##%##???????????????????# | | ????????????????????#####+########?????????????# | | ???????????????????## =#?????????????# | | ???????????????????## "" ] #?????????????# | | ???????????????????##*"R #?????????????### | | ????????????????????#*["" #???????????????? | | ????????????????????#! " @R """ #???????????????? | | ????????????????????#=Hg """ #???????????????? | | ????????????????????#R g R% """ #???????????????? | | ????????????????????# Rkk R #???????????????? | | ????????????????????# k """ """ #???????????????? | | ????????????????????# """ """ #???????????????? | | ????????????????????# u """ """ #???????????????? | | ????????????????????# #???????????????? | | ????????????????????######+#####?????????????????? | | ?????????????????????????????????????????????????? | | ?????????????????????????????????????????????????? | | ?????????????????????????????????????????????????? | | ?????????????????????????????????????????????????? | | ?????????????????????????????????????????????????? | | ?????????????????????????????????????????????????? | | ?????????????????????????????????????????????????? | | ?????????????????????????????????????????????????? | | ?????????????????????????????????????????????????? | | ????????????""?""????????????????????????????????? | | ????????????""S""????????????????????????????????? | | ????????????""""?????????????????????????????????? | | ?????????????????????????????????????????????????? | | ?????????????????????????????????????????????????? | | ?????????????????????????????????????????????????? | | ?????????????????????????????????????????????????? | +----------------------------------------------------+ Best States ------------- Heat Dissipation 64 Coolant Potential 65 Energy Generation 18 Energy Capacity 310 Matter Stores 300 Matter Capacity 300 Sight Range 16 Terrain Scan Density 10 Armor Coverage 225 Core Shielding 20 Evasion (%) 55 Melee Accuracy 10 Offensive Hacking 20 Defensive Hacking 30 Item Schematics ----------------- Cld. Ion Engine | -9/Materials | Scanalyzed Hcp. Matter Pod | -9/Materials | Scanalyzed Mace | -9/Materials | Scanalyzed Com. Wheel | -9/Materials | Scanalyzed Melee Analysis Suite | -8/Materials | Scanalyzed Great Maul | -8/Materials | Scanalyzed Imp. Signal Interpreter | -8/Materials | Scanalyzed Scythe | -6/Factory | Scanalyzed Robot Schematics ------------------ None Fabricated ------------ Nothing Alien Tech Used ----------------- None Achievements -------------- None Challenges ------------ None Game ------ Seed IntegratedServoMatrix Manual? 0 Play Time 00:46:31 Cumulative 207.1 hours Start 2024.06.05 @ 12:34:19 End 2024.06.05 @ 13:20:24 Sessions 1 Manual Loads 0 Difficulty Rogue Special Mode None Game No. 376 Rogue 376 Adventurer 0 Explorer 0 Win Type - Total 0 Types 0/0/0/0/0/0/0/0/0 Lore% 45 Gallery% 56 Achievement% 39 Wizard Run 0 Options --------- Layout 1 ASCII 0 Keyboard 0 Movement Mouse Keybinds 0 Fullscreen 1 Font 24/Smallcaps Map View 50x40 Zoom Use 0% Tactical HUD 1 Map Filters NONE Filters NONE Steam 1 RUN: 523c1954-68e0-42d3-9ad3-aea7a22ae61a